bitfinex-derivatives/quotes_BTCF0:USTF0_20251108
["timestamp","ask_amount","ask_price","bid_price","bid_amount"]
[1762608758985,0.98994294,102100.0,102090.0,0.04595745]
[1762608759187,0.98994294,102100.0,102090.0,0.06242043]
[1762608759685,0.98994294,102100.0,102090.0,9.745e-05]
[1762608761288,1.02511533,102100.0,102090.0,9.745e-05]
[1762608761484,0.1537065,102090.0,102080.0,0.00014702]
[1762608761694,0.5145065,102090.0,102080.0,0.00014702]
[1762608761888,0.62102171,102090.0,102080.0,0.00014702]
[1762608762083,0.6561941,102090.0,102080.0,0.00014702]
[1762608762278,0.62102171,102090.0,102080.0,0.00014702]
[1762608762498,0.65627787,102090.0,102080.0,0.00014702]
[1762608762685,0.80317637,102090.0,102080.0,0.00014702]
[1762608763193,0.1427457,102070.0,102060.0,0.05941]
[1762608763486,0.25234401,102070.0,102060.0,0.05941]
[1762608763790,0.61314401,102070.0,102060.0,0.07587298]
[1762608764296,0.05825,102060.0,102050.0,0.07231635]
[1762608764485,0.40632099,102060.0,102050.0,0.28761505]
[1762608764789,0.11276166,102060.0,102050.0,0.66487803]
[1762608764995,0.21079696,102060.0,102050.0,0.66487803]
[1762608765791,0.23406696,102060.0,102050.0,0.66487803]
[1762608765992,0.25624696,102060.0,102050.0,0.66487803]
[1762608766190,0.25624696,102060.0,102050.0,0.07625102]
[1762608766392,0.61704696,102060.0,102050.0,0.07825102]
[1762608766894,0.61704696,102060.0,102050.0,0.17629592]
[1762608767484,0.61704696,102060.0,102050.0,0.07825102]
[1762608767697,0.61704696,102060.0,102050.0,0.15983294]
[1762608767698,0.25624696,102060.0,102050.0,0.15983294]
[1762608767892,0.25624696,102060.0,102050.0,0.17629592]
[1762608768200,0.25624696,102060.0,102050.0,0.15983294]
[1762608768497,0.25624696,102060.0,102050.0,0.17629592]
[1762608768697,0.25624696,102060.0,102050.0,0.17829592]
[1762608768993,0.25624696,102060.0,102050.0,0.16183294]
[1762608769699,0.25624696,102060.0,102050.0,0.17829592]
[1762608770904,0.15821166,102060.0,102050.0,0.17829592]
[1762608771290,0.25624696,102060.0,102050.0,0.30807803]
[1762608771791,0.25624696,102060.0,102050.0,0.29161505]
[1762608771991,0.25624696,102060.0,102050.0,0.30807803]
[1762608772190,0.25624696,102060.0,102050.0,0.66887803]
[1762608772405,0.11276166,102060.0,102050.0,0.69401204]
[1762608773499,7.099e-05,102060.0,102050.0,1.29401204]
[1762608773798,1e-08,102060.0,102050.0,0.69401204]
[1762608774004,1e-08,102060.0,102050.0,0.93897204]
[1762608774205,1e-08,102060.0,102050.0,1.53897204]
[1762608774502,1e-08,102060.0,102050.0,1.54882737]
[1762608774799,1e-08,102060.0,102050.0,1.53897204]
[1762608775200,1e-08,102060.0,102050.0,1.56529035]
[1762608775497,1e-08,102060.0,102050.0,1.54882737]
[1762608775703,1e-08,102060.0,102050.0,1.56529035]
[1762608776899,1e-08,102060.0,102050.0,1.60039624]
[1762608777095,1e-08,102060.0,102050.0,1.74999624]
[1762608777606,1e-08,102060.0,102050.0,1.50503624]
[1762608777994,1e-08,102060.0,102050.0,1.74999624]
[1762608778195,1e-08,102060.0,102050.0,1.50503624]
[1762608778402,1e-08,102060.0,102050.0,1.74999624]
[1762608779103,1e-08,102060.0,102050.0,1.77649338]
[1762608779304,1e-08,102060.0,102050.0,1.53153338]
[1762608779506,1e-08,102060.0,102050.0,1.74993123]
[1762608780000,0.00014702,102080.0,102070.0,0.1559257]
[1762608780208,0.14049312,102080.0,102070.0,0.3273048]
[1762608780401,0.25299512,102080.0,102070.0,0.6881048]
[1762608781203,0.15497902,102080.0,102070.0,0.6881048]
[1762608781397,0.11264902,102080.0,102070.0,0.6881048]
[1762608781706,0.15597902,102080.0,102070.0,0.67164182]
[1762608781902,0.26435703,102080.0,102070.0,0.67164182]
[1762608782206,0.26535703,102080.0,102070.0,0.6881048]
[1762608782506,0.26535703,102080.0,102070.0,0.30127327]
[1762608782709,0.26535703,102080.0,102070.0,0.66207327]
[1762608782710,0.16734093,102080.0,102070.0,0.66207327]
[1762608783005,0.26535703,102080.0,102070.0,0.64561029]
[1762608783197,0.26435703,102080.0,102070.0,0.28581029]
[1762608784105,0.26435703,102080.0,102070.0,0.30227327]
[1762608784405,0.26335703,102080.0,102070.0,0.30327327]
[1762608785111,0.16534093,102080.0,102070.0,0.69033074]
[1762608785307,0.16534093,102080.0,102070.0,0.79408132]
[1762608785503,0.16534093,102080.0,102070.0,0.69033074]
[1762608786012,0.16534093,102080.0,102070.0,0.67386776]
[1762608786206,0.26335703,102080.0,102070.0,0.67386776]
[1762608786905,0.26335703,102080.0,102070.0,0.31306776]
[1762608787101,0.16534093,102080.0,102070.0,0.31306776]
[1762608787303,0.16534093,102080.0,102070.0,0.67386776]
[1762608787713,0.16534093,102080.0,102070.0,0.69033074]
[1762608788103,0.16534093,102080.0,102070.0,0.72543663]
[1762608788307,0.16534093,102080.0,102070.0,0.62168605]
[1762608788612,0.16534093,102080.0,102070.0,0.72543663]
[1762608789002,0.26335703,102080.0,102070.0,0.72543663]
[1762608789198,0.26335703,102080.0,102070.0,0.32953074]
[1762608790408,0.16534093,102080.0,102070.0,0.32953074]
[1762608791009,0.16534093,102080.0,102070.0,0.31306776]
[1762608791317,0.16534093,102080.0,102070.0,0.72543663]
[1762608791518,0.16534093,102080.0,102070.0,0.70897365]
[1762608791819,0.16534093,102080.0,102070.0,0.72543663]
[1762608792912,0.16534093,102080.0,102070.0,0.70897365]
[1762608793315,0.16534093,102080.0,102070.0,0.72543663]
[1762608794020,0.26335703,102080.0,102070.0,0.72543663]
[1762608794919,0.16534093,102080.0,102070.0,0.72543663]
[1762608796025,0.26335703,102080.0,102070.0,0.62168605]
[1762608796227,0.16534093,102080.0,102070.0,0.72543663]
[1762608797229,0.16534093,102080.0,102070.0,0.70897365]
[1762608797729,0.16534093,102080.0,102070.0,0.34817365]
[1762608797928,0.16534093,102080.0,102070.0,0.70897365]
[1762608798234,0.26335703,102080.0,102070.0,0.34817365]
[1762608798529,0.26335703,102080.0,102070.0,0.36463663]
[1762608798916,0.26335703,102080.0,102070.0,0.26088605]
[1762608799618,0.26335703,102080.0,102070.0,0.09755148]
[1762608799619,0.84445819,102080.0,102070.0,0.09755148]
[1762608799825,0.84445819,102080.0,102070.0,0.02713401]
[1762608800326,0.74170761,102080.0,102070.0,0.02513401]
[1762608800628,0.74270761,102080.0,102070.0,0.02513401]
[1762608801223,0.84645819,102080.0,102070.0,0.02513401]
[1762608801623,1.04673912,102080.0,102070.0,0.02513401]
[1762608801829,0.1531053,102060.0,102050.0,0.11957706]
[1762608802130,0.72463311,102060.0,102050.0,0.09617786]
[1762608802430,0.82838369,102060.0,102050.0,0.04849473]
[1762608802625,0.62088253,102060.0,102050.0,0.04849473]
[1762608802830,0.72463311,102060.0,102050.0,0.04849473]
[1762608803019,0.72463311,102060.0,102050.0,0.14653963]
[1762608803220,0.72463311,102060.0,102050.0,0.04849473]
[1762608803427,0.72463311,102060.0,102050.0,0.02559473]
[1762608803626,0.72463311,102060.0,102050.0,0.16879963]
[1762608803826,0.72463311,102060.0,102050.0,0.18353963]
[1762608804035,0.72463311,102060.0,102050.0,0.16979963]
[1762608804229,0.36383311,102060.0,102050.0,0.14853963]
[1762608804434,0.72463311,102060.0,102050.0,0.05049473]
[1762608804732,0.72463311,102060.0,102050.0,0.02759473]
[1762608804928,0.72463311,102060.0,102050.0,0.05049473]
[1762608805234,0.72463311,102060.0,102050.0,0.07175473]
[1762608805433,0.72463311,102060.0,102050.0,0.16979963]
[1762608805835,0.72463311,102060.0,102050.0,0.18254963]
[1762608806535,0.72463311,102060.0,102050.0,0.08450473]
[1762608807136,0.72463311,102060.0,102050.0,0.15705294]
[1762608807339,0.72463311,102060.0,102050.0,0.18250767]
[1762608807537,0.72463311,102060.0,102050.0,0.15705294]
[1762608808237,0.60814253,102060.0,102050.0,0.15705294]
[1762608808540,0.62088253,102060.0,102050.0,0.02499804]
[1762608808729,0.62088253,102060.0,102050.0,0.24957352]
[1762608808929,0.72463311,102060.0,102050.0,0.24957352]
[1762608809238,0.72463311,102060.0,102050.0,0.26132352]
[1762608809239,0.35209311,102060.0,102050.0,0.26132352]
[1762608809439,0.24834253,102060.0,102050.0,0.26032352]
[1762608809632,0.24934253,102060.0,102050.0,0.26032352]
[1762608809937,0.24934253,102060.0,102050.0,0.28576472]
[1762608811035,0.62288253,102060.0,102050.0,0.28576472]
[1762608811538,0.61014253,102060.0,102050.0,0.28576472]
[1762608811740,0.24934253,102060.0,102050.0,0.28576208]
[1762608812334,0.24934253,102060.0,102050.0,0.18201008]
[1762608812540,0.24934253,102060.0,102050.0,0.28576066]
[1762608813142,0.24934253,102060.0,102050.0,0.26032352]
[1762608813643,0.24934253,102060.0,102050.0,0.2767865]
[1762608813840,0.24934253,102060.0,102050.0,0.66302211]
[1762608814041,0.24934253,102060.0,102050.0,0.6375865]
[1762608814245,0.24934253,102060.0,102050.0,0.26032352]
[1762608814444,0.24934253,102060.0,102050.0,0.62112352]
[1762608814638,0.13019723,102060.0,102050.0,0.66302122]
[1762608814944,0.15314723,102060.0,102050.0,0.66302122]
[1762608815944,0.10897723,102060.0,102050.0,0.7667718]
[1762608816242,0.002,102060.0,102050.0,0.7667718]
[1762608816443,0.002,102060.0,102050.0,0.79319493]
[1762608816746,0.61210181,102060.0,102050.0,0.20417632]
[1762608817135,0.61110181,102060.0,102050.0,0.30222122]
[1762608817336,0.61110181,102060.0,102050.0,0.30322122]
[1762608817536,0.61010181,102060.0,102050.0,0.20617632]
[1762608817740,0.61010181,102060.0,102050.0,0.18971334]
[1762608817940,0.61010181,102060.0,102050.0,0.20617632]
[1762608819348,0.72759239,102060.0,102050.0,0.20417632]
[1762608819545,0.72859239,102060.0,102050.0,0.20417632]
[1762608819747,0.62484181,102060.0,102050.0,0.20417632]
[1762608820047,0.25130181,102060.0,102050.0,0.66302122]
[1762608820243,0.25130181,102060.0,102050.0,0.30222122]
[1762608820746,0.25130181,102060.0,102050.0,0.28575824]
[1762608821141,0.61210181,102060.0,102050.0,0.20417632]
[1762608821643,0.61210181,102060.0,102050.0,0.19142632]
[1762608821844,0.71585239,102060.0,102050.0,0.19142632]
[1762608822547,0.71585239,102060.0,102050.0,0.02553276]
[1762608823252,0.71585239,102060.0,102050.0,0.07015276]
[1762608823456,0.71585239,102060.0,102050.0,0.04838276]
[1762608824148,0.81960297,102060.0,102050.0,0.02553276]
[1762608824351,0.71594059,102060.0,102050.0,0.02553276]
[1762608824554,0.76875927,102060.0,102050.0,9.804e-05]
[1762608825140,0.1445545,102040.0,102030.0,0.08498313]
[1762608825348,0.5053545,102040.0,102030.0,0.08403293]
[1762608825547,0.61011083,102040.0,102030.0,0.08403293]
[1762608825749,0.61011083,102040.0,102030.0,0.10049591]
[1762608826145,0.61011083,102040.0,102030.0,0.08403293]
[1762608826754,0.72674961,102040.0,102030.0,0.04593591]
[1762608827057,0.72674961,102040.0,102030.0,0.004]
[1762608827249,0.62291083,102040.0,102030.0,0.004]
[1762608828553,0.72674961,102040.0,102030.0,0.004]
[1762608828758,0.87356877,102040.0,102030.0,0.004]
[1762608829756,0.92641901,102040.0,102030.0,0.004]
[1762608830157,0.87356877,102040.0,102030.0,0.004]
[1762608832058,0.76972999,102040.0,102030.0,0.04882]
[1762608832250,0.39612999,102040.0,102030.0,0.07853298]
[1762608832448,0.75692999,102040.0,102030.0,0.07853298]
[1762608832853,0.75692999,102040.0,102030.0,0.02046298]
[1762608833058,0.86076877,102040.0,102030.0,0.004]
[1762608833753,0.86276877,102040.0,102030.0,0.002]
[1762608833955,0.1573041,102030.0,102020.0,0.00011173]
[1762608834150,0.62194288,102030.0,102020.0,0.01657471]
[1762608834350,0.73416868,102030.0,102020.0,0.01657471]
[1762608835155,0.73416868,102030.0,102020.0,0.00011173]
[1762608835358,0.1537333,102010.0,102000.0,0.08437313]
[1762608835552,0.1537333,102010.0,102000.0,0.04818507]
[1762608835957,0.26696759,102010.0,102000.0,0.08629805]
[1762608836457,0.04356,101990.0,101980.0,0.18248123]
[1762608836653,0.00011409,101990.0,101980.0,0.67224574]
[1762608836984,0.10285233,101990.0,101980.0,0.68870872]
[1762608837353,0.20095493,101990.0,101980.0,0.58486994]
[1762608837549,0.11302609,101990.0,101980.0,0.67224574]
[1762608837753,0.11302609,101990.0,101980.0,0.68870872]
[1762608838057,0.11302609,101990.0,101980.0,0.67224574]
[1762608838256,0.11302609,101990.0,101980.0,0.68870872]
[1762608838458,0.11302609,101990.0,101980.0,0.67224574]
[1762608838658,0.11402609,101990.0,101980.0,0.69370872]
[1762608838955,0.11402609,101990.0,101980.0,0.67724574]
[1762608839150,0.11402609,101990.0,101980.0,0.69370872]
[1762608839555,0.11502609,101990.0,101980.0,0.69870872]
[1762608839762,0.25668869,101990.0,101980.0,0.59486994]
[1762608839964,0.11502609,101990.0,101980.0,0.59486994]
[1762608840158,0.23502869,101990.0,101980.0,0.69870872]
[1762608840360,0.21212869,101990.0,101980.0,0.66828969]
[1762608840663,0.21212869,101990.0,101980.0,0.66328969]
[1762608840664,0.21112869,101990.0,101980.0,0.66328969]
[1762608840857,0.23302869,101990.0,101980.0,0.66428969]
[1762608841266,0.23302869,101990.0,101980.0,1.26428969]
[1762608841267,0.11302609,101990.0,101980.0,1.26428969]
[1762608841461,0.11302609,101990.0,101980.0,0.66428969]
[1762608841649,0.25468869,101990.0,101980.0,0.46233871]
[1762608841852,0.25468869,101990.0,101980.0,0.56617749]
[1762608842656,0.25468869,101990.0,101980.0,0.66428969]
[1762608843059,0.25468869,101990.0,101980.0,0.56617749]
[1762608843364,0.13492609,101990.0,101980.0,0.64782671]
[1762608843563,0.11302609,101990.0,101980.0,0.64782671]
[1762608843763,0.23302869,101990.0,101980.0,0.64782671]
[1762608843970,0.13492609,101990.0,101980.0,0.66428969]
[1762608844163,0.11302609,101990.0,101980.0,0.64782671]
[1762608844351,0.11302609,101990.0,101980.0,0.66428969]
[1762608844558,0.11302609,101990.0,101980.0,0.64782671]
[1762608844764,0.11302609,101990.0,101980.0,0.66428969]
[1762608845061,0.11302609,101990.0,101980.0,0.69047945]
[1762608845855,0.11302609,101990.0,101980.0,0.67401647]
[1762608846353,0.10285233,101990.0,101980.0,0.67401647]
[1762608846558,0.00014702,102000.0,101990.0,0.1555226]
[1762608846763,0.00014702,102000.0,101990.0,0.68794523]
[1762608846969,0.5152411,102020.0,102010.0,0.1559233]
[1762608847262,0.5024411,102020.0,102010.0,0.27622506]
[1762608847463,0.26210252,102020.0,102010.0,0.27622506]
[1762608847663,0.26210252,102020.0,102010.0,0.30124136]
[1762608847853,0.26210252,102020.0,102010.0,0.27622506]
[1762608848053,0.26610252,102020.0,102010.0,0.26076208]
[1762608848272,0.25269252,102020.0,102010.0,0.66305431]
[1762608848662,0.25269252,102020.0,102010.0,0.63802506]
[1762608849071,0.11105142,102020.0,102010.0,0.66305385]
[1762608849261,0.004,102020.0,102010.0,0.93444447]
[1762608849458,0.01018385,102030.0,102020.0,0.1560637]
[1762608849762,0.15180795,102030.0,102020.0,0.66219425]
[1762608850168,0.15180795,102030.0,102020.0,0.64573127]
[1762608850370,0.15180795,102030.0,102020.0,0.75946314]
[1762608850761,0.05374385,102030.0,102020.0,0.77592612]
[1762608850966,0.01018385,102030.0,102020.0,0.80223674]
[1762608851168,0.01018385,102030.0,102020.0,0.80323674]
[1762608851669,0.01018385,102030.0,102020.0,0.78677376]
[1762608852070,0.01018385,102030.0,102020.0,0.76046314]
[1762608852370,0.15180795,102030.0,102020.0,0.76046314]
[1762608852560,0.15180795,102030.0,102020.0,0.55935547]
[1762608853076,0.15180795,102030.0,102020.0,0.56035547]
[1762608853370,0.15180795,102030.0,102020.0,0.58666609]
[1762608853957,0.15180795,102030.0,102020.0,0.56035547]
[1762608854876,0.26902384,102030.0,102020.0,0.46228177]
[1762608855071,0.26902384,102030.0,102020.0,0.44899177]
[1762608855479,0.26902384,102030.0,102020.0,0.46228177]
[1762608855659,0.15754974,102030.0,102020.0,0.56035547]
[1762608855862,0.15754974,102030.0,102020.0,0.54389249]
[1762608856561,0.15754974,102030.0,102020.0,0.5188637]
[1762608856767,0.25561384,102030.0,102020.0,0.5188637]
[1762608857072,0.15754974,102030.0,102020.0,0.53532668]
[1762608857271,0.25561384,102030.0,102020.0,0.53532668]
[1762608857670,0.25561384,102030.0,102020.0,0.5188637]
[1762608858470,0.25561384,102030.0,102020.0,0.53532668]
[1762608859378,0.25561384,102030.0,102020.0,0.5188637]
[1762608859678,0.15754974,102030.0,102020.0,0.53532668]
[1762608860180,0.11398974,102030.0,102020.0,0.75289733]
[1762608860372,0.13588974,102030.0,102020.0,0.75289733]
[1762608860580,0.15754974,102030.0,102020.0,0.75289733]
[1762608860970,0.15754974,102030.0,102020.0,0.73643435]
[1762608861173,0.15754974,102030.0,102020.0,0.75289733]
[1762608861374,0.11398974,102030.0,102020.0,0.75289733]
[1762608861672,0.01018385,102030.0,102020.0,0.77920795]
[1762608861871,0.00014702,102030.0,102020.0,0.77920795]
[1762608862679,0.00014702,102030.0,102020.0,0.76274497]
[1762608863281,0.00014702,102030.0,102020.0,1.02424795]
[1762608863778,0.00014702,102030.0,102020.0,0.81431384]
[1762608863973,0.00014702,102030.0,102020.0,1.05935384]
[1762608864170,0.1416116,102050.0,102040.0,0.1558545]
[1762608864371,0.0219,102050.0,102040.0,0.53311748]
[1762608864569,0.55096256,102070.0,102060.0,0.1427353]
[1762608864878,0.63468541,102070.0,102060.0,0.17233828]
[1762608865079,0.63468541,102070.0,102060.0,0.1558753]
[1762608865278,0.63468541,102070.0,102060.0,0.0447]
[1762608865677,0.62127541,102070.0,102060.0,0.05733]
[1762608865873,0.08816002,102080.0,102060.0,0.38939893]
[1762608866076,0.14400312,102080.0,102070.0,0.05745]
[1762608866273,0.05905702,102080.0,102070.0,0.06128298]
[1762608866482,0.26554936,102080.0,102070.0,0.3836]
[1762608866780,0.1569357,102070.0,102060.0,0.04482]
[1762608866971,0.5177357,102070.0,102060.0,0.04482]
[1762608867369,0.63130272,102070.0,102060.0,0.0228]
[1762608867783,0.63130272,102070.0,102060.0,0.04582]
[1762608867980,0.64146334,102070.0,102060.0,0.1438553]
[1762608868178,0.28066334,102070.0,102060.0,0.1438553]
[1762608868684,0.64146334,102070.0,102060.0,0.04582]
[1762608869575,0.64246334,102070.0,102060.0,0.1438553]
[1762608869882,0.64246334,102070.0,102060.0,0.1428553]
[1762608870777,0.64446334,102070.0,102060.0,0.1428553]
[1762608872394,0.54643764,102070.0,102060.0,0.24665232]
[1762608872780,0.54643764,102070.0,102060.0,0.1428553]
[1762608873275,0.54643764,102070.0,102060.0,0.17194828]
[1762608873476,0.17256764,102070.0,102060.0,0.6365453]
[1762608873780,0.12672764,102070.0,102060.0,0.6365453]
[1762608874284,0.11656702,102070.0,102060.0,0.74034232]
[1762608874496,0.003,102070.0,102060.0,0.98530232]
[1762608875077,0.003,102070.0,102060.0,0.76665294]
[1762608875480,0.003,102070.0,102060.0,1.01161294]
[1762608875678,0.003,102070.0,102060.0,0.76665294]
[1762608875985,0.003,102070.0,102060.0,1.01161294]
[1762608876282,0.003,102070.0,102060.0,0.76665294]
[1762608876483,0.00014702,102080.0,102070.0,0.1554757]
[1762608876688,0.00014702,102080.0,102070.0,0.66284632]
[1762608877682,0.00014702,102080.0,102070.0,0.66484632]
[1762608877881,0.05253929,102100.0,102090.0,0.1499865]
[1762608878082,0.05253929,102100.0,102090.0,0.73484352]
[1762608878279,0.17892781,102100.0,102090.0,0.73484352]
[1762608878974,0.20202781,102100.0,102090.0,0.88804948]
[1762608879282,0.15618781,102100.0,102090.0,1.09564352]
[1762608879676,0.15618781,102100.0,102090.0,1.09664352]
[1762608880288,0.05253929,102100.0,102090.0,1.09664352]
[1762608880680,0.05253929,102100.0,102090.0,0.88904948]
[1762608880983,0.19637619,102100.0,102090.0,0.88904948]
[1762608881187,0.3027562,102100.0,102090.0,0.89484]
[1762608881486,0.2178293,102100.0,102090.0,0.9928465]
[1762608882286,0.2178293,102100.0,102090.0,0.88904948]
[1762608882587,0.3158262,102100.0,102090.0,0.88904948]
[1762608885290,0.3158262,102100.0,102090.0,0.16744948]
[1762608885492,0.3158262,102100.0,102090.0,0.06228298]
[1762608885892,0.3158262,102100.0,102090.0,0.16028948]
[1762608886397,0.6766262,102100.0,102090.0,0.16028948]
[1762608886694,0.6766262,102100.0,102090.0,0.04582]
[1762608888190,0.6766262,102100.0,102090.0,0.1438265]
[1762608888993,0.2178293,102100.0,102090.0,0.5046265]
[1762608889293,0.2178293,102100.0,102090.0,0.1571465]
[1762608889500,0.05253929,102100.0,102090.0,0.93524485]
[1762608890000,0.05283996,102110.0,102100.0,0.1545469]
[1762608890199,0.05283996,102110.0,102100.0,0.66141463]
[1762608890394,0.16116837,102110.0,102100.0,0.66141463]
[1762608890591,0.16116837,102110.0,102100.0,0.53176988]
[1762608890792,0.16116837,102110.0,102100.0,0.66141463]
[1762608892098,0.16216837,102110.0,102100.0,0.66141463]
[1762608892293,0.16216837,102110.0,102100.0,0.68772525]
[1762608892489,0.16416837,102110.0,102100.0,0.68772525]
[1762608893797,0.05583996,102110.0,102100.0,0.68772525]
[1762608895399,0.05583996,102110.0,102100.0,0.93256525]
[1762608895597,0.05583996,102110.0,102100.0,0.72283114]
[1762608896202,0.05583996,102110.0,102100.0,0.68772525]
[1762608898303,0.05583996,102110.0,102100.0,0.72283114]
[1762608898605,0.00314702,102110.0,102100.0,0.72283114]
[1762608900103,0.04731702,102110.0,102100.0,0.72283114]
[1762608900605,0.04731702,102110.0,102100.0,0.59318639]
[1762608900901,0.04731702,102110.0,102100.0,0.68772525]
[1762608901298,0.00314702,102110.0,102100.0,0.68772525]
[1762608901493,0.02119,102140.0,102130.0,0.1529981]
[1762608901696,0.0670282,102150.0,102140.0,0.1574185]
[1762608901897,0.0541282,102150.0,102140.0,0.28706325]
[1762608902197,0.0541282,102150.0,102140.0,0.66432623]
[1762608902198,0.14091382,102150.0,102140.0,0.66432623]
[1762608902397,0.0311482,102150.0,102140.0,0.74185008]
[1762608902593,0.49268032,102160.0,102150.0,0.1435089]
[1762608902790,0.40511702,102160.0,102150.0,0.2609932]
[1762608902998,0.51488264,102160.0,102150.0,0.2609932]
[1762608903200,0.15408264,102160.0,102150.0,0.6217932]
[1762608904092,0.16420359,102160.0,102150.0,0.6217932]
[1762608904292,0.16420359,102160.0,102150.0,0.66415122]
[1762608904518,0.14122359,102160.0,102150.0,0.64768824]
[1762608904702,0.62294289,102160.0,102150.0,0.20540232]
[1762608905005,0.63554289,102160.0,102150.0,0.07592298]
[1762608905308,0.63754289,102160.0,102150.0,0.05946]
[1762608905501,0.27674289,102160.0,102150.0,0.05946]
[1762608905805,0.63754289,102160.0,102150.0,0.05946]
[1762608906405,0.27874289,102160.0,102150.0,0.1574089]
[1762608906906,0.27874289,102160.0,102150.0,0.05946]
[1762608907208,0.63954289,102160.0,102150.0,0.05946]
[1762608907503,0.27874289,102160.0,102150.0,0.1574089]
[1762608907704,0.27874289,102160.0,102150.0,0.05946]
[1762608907903,0.27874289,102160.0,102150.0,0.1574089]
[1762608908205,0.26614289,102160.0,102150.0,0.28688824]
[1762608909598,0.26614289,102160.0,102150.0,0.05946]
[1762608909805,0.63754289,102160.0,102150.0,0.04556]
[1762608910009,0.63754289,102160.0,102150.0,0.04656]
[1762608910010,0.63554289,102160.0,102150.0,0.04656]
[1762608910204,0.63554289,102160.0,102150.0,0.04756]
[1762608910595,0.63554289,102160.0,102150.0,0.02444]
[1762608910795,0.63554289,102160.0,102150.0,0.002]
[1762608911000,0.61202232,102160.0,102150.0,0.002]
[1762608911199,0.61202232,102160.0,102150.0,0.001]
[1762608913202,0.61202232,102160.0,102150.0,0.1435089]
[1762608913402,0.61602232,102160.0,102150.0,0.1435089]
[1762608913605,0.61602232,102160.0,102150.0,0.1574089]
[1762608914104,0.61402232,102160.0,102150.0,0.1574089]
[1762608914408,0.61502232,102160.0,102150.0,0.1574089]
[1762608915104,0.14368302,102160.0,102150.0,0.64768824]
[1762608915309,0.24162242,102160.0,102150.0,0.28688824]
[1762608915507,0.24162242,102160.0,102150.0,0.64768824]
[1762608915710,0.14368302,102160.0,102150.0,0.64768824]
[1762608915916,0.14168302,102160.0,102150.0,0.64768824]
[1762608916305,0.14068302,102160.0,102150.0,0.66415122]
[1762608916507,0.14168302,102160.0,102150.0,0.66415122]
[1762608917012,0.23962242,102160.0,102150.0,0.66415122]
[1762608917216,0.14168302,102160.0,102150.0,0.66415122]
[1762608918917,0.11816513,102160.0,102150.0,0.66415122]
[1762608919215,0.001,102160.0,102150.0,0.69038714]
[1762608919615,0.001,102160.0,102150.0,0.72539545]
[1762608920521,0.001,102160.0,102150.0,0.59591611]
[1762608920815,0.001,102160.0,102150.0,0.72539545]
[1762608921516,0.001,102160.0,102150.0,0.75197498]
[1762608922014,0.001,102160.0,102150.0,0.69915953]
[1762608923112,0.001,102160.0,102150.0,0.72541498]
[1762608923411,0.02219,102160.0,102150.0,0.72541498]
[1762608923813,0.001,102160.0,102150.0,0.72541498]
[1762608924814,0.04517,102160.0,102150.0,0.72541498]
[1762608925209,0.02219,102160.0,102150.0,0.72541498]
[1762608925408,0.001,102160.0,102150.0,0.72541498]
[1762608926309,0.001,102160.0,102150.0,0.80305988]
[1762608926913,0.09709308,102170.0,102160.0,0.1200494]
[1762608927115,0.12012308,102170.0,102160.0,0.72370364]
[1762608927306,0.22929754,102170.0,102160.0,0.72370364]
[1762608927512,0.22929754,102170.0,102160.0,0.37936662]
[1762608928212,0.23129754,102170.0,102160.0,0.37936662]
[1762608928412,0.23129754,102170.0,102160.0,0.30169488]
[1762608929416,0.23129754,102170.0,102160.0,0.07430298]
[1762608929617,0.60669754,102170.0,102160.0,0.05784]
[1762608929826,0.24589754,102170.0,102160.0,0.05784]
[1762608930119,0.23329754,102170.0,102160.0,0.05784]
[1762608930320,0.23329754,102170.0,102160.0,0.6460319]
[1762608930522,0.13470446,102170.0,102160.0,0.6460319]
[1762608930711,0.004,102170.0,102160.0,0.68875033]
[1762608931522,0.004,102170.0,102160.0,0.72375864]
[1762608932728,0.02553,102170.0,102160.0,0.72375864]
[1762608933827,0.004,102170.0,102160.0,0.72375864]
[1762608934124,0.02553,102170.0,102160.0,0.72375864]
[1762608934614,0.02553,102170.0,102160.0,0.68875033]
[1762608935021,0.00201585,102170.0,102160.0,0.68875033]
[1762608935226,0.15288633,102180.0,102170.0,0.1557698]
[1762608935419,0.15288633,102180.0,102170.0,0.30168528]
[1762608935621,0.25584222,102180.0,102170.0,0.2852223]
[1762608936021,0.61664222,102180.0,102170.0,0.1872925]
[1762608936412,0.61664222,102180.0,102170.0,0.05784]
[1762608936619,0.11336202,102180.0,102170.0,0.2852223]
[1762608936811,0.15792202,102180.0,102170.0,0.6460223]
[1762608937227,0.25784222,102180.0,102170.0,0.6460223]
[1762608937623,0.25784222,102180.0,102170.0,0.2852223]
[1762608937823,0.26084222,102180.0,102170.0,0.2852223]
[1762608938327,0.25884222,102180.0,102170.0,0.2852223]
[1762608938818,0.25584222,102180.0,102170.0,0.2852223]
[1762608939322,0.25584222,102180.0,102170.0,0.30168528]
[1762608941724,0.25584222,102180.0,102170.0,0.17223278]
[1762608941924,0.25584222,102180.0,102170.0,0.30168528]
[1762608942824,0.15792202,102180.0,102170.0,0.30168528]
[1762608943031,0.23232848,102180.0,102170.0,0.30168528]
[1762608943924,0.23232848,102180.0,102170.0,0.20375548]
[1762608944125,0.23232848,102180.0,102170.0,0.30168528]
[1762608944521,0.23232848,102180.0,102170.0,0.1557698]
[1762608944723,0.23232848,102180.0,102170.0,0.30168528]
[1762608945531,0.23232848,102180.0,102170.0,0.19848823]
[1762608945730,0.23232848,102180.0,102170.0,0.30168528]
[1762608946331,0.59312848,102180.0,102170.0,0.17223278]
[1762608946523,0.60359095,102180.0,102170.0,0.17223278]
[1762608946929,0.24279095,102180.0,102170.0,0.19857615]
[1762608947725,0.14487075,102180.0,102170.0,0.19857615]
[1762608947925,0.24279095,102180.0,102170.0,0.19857615]
[1762608948329,0.24279095,102180.0,102170.0,0.41554141]
[1762608950227,0.63875371,102180.0,102170.0,0.31761161]
[1762608950429,0.63875371,102180.0,102170.0,0.2041956]
[1762608950430,0.27795371,102180.0,102170.0,0.2041956]
[1762608950625,0.27795371,102180.0,102170.0,0.3021254]
[1762608950825,0.63875371,102180.0,102170.0,0.3021254]
[1762608951128,0.25443923,102180.0,102170.0,0.3021254]
[1762608951627,0.61523923,102180.0,102170.0,0.3021254]
[1762608952026,0.61523923,102180.0,102170.0,0.27578203]
[1762608952223,0.25443923,102180.0,102170.0,0.27578203]
[1762608953134,0.25443923,102180.0,102170.0,0.25931905]
[1762608953340,0.25443923,102180.0,102170.0,0.27578203]
[1762608958440,0.66808947,102180.0,102170.0,0.17785223]
[1762608959139,0.1422598,102170.0,102160.0,0.54888262]
[1762608959439,0.29329755,102170.0,102160.0,0.17513262]
[1762608959635,0.29329755,102170.0,102160.0,0.16525223]
[1762608959940,0.34614779,102170.0,102160.0,0.07556298]
[1762608960141,0.1422694,102160.0,102150.0,0.68292955]
[1762608960343,0.1422694,102160.0,102150.0,0.58498795]
[1762608960536,0.17743216,102160.0,102150.0,0.08563039]
[1762608960737,0.2302824,102160.0,102150.0,0.1736989]
[1762608961036,0.33884,102160.0,102150.0,0.1736989]
[1762608961645,0.33884,102160.0,102150.0,0.1756989]
[1762608962047,0.28598976,102160.0,102150.0,0.1756989]